[Event "Late-Titled-Tuesday-Blitz-September-19-2023"]
[Site "Chess.com"]
[Date "2023.09.19"]
[Round "11"]
[White "szefru"]
[Black "andrzej"]
[Result "1/2-1/2"]
[WhiteElo "2336"]
[BlackElo "2474"]
[TimeControl "180+1"]
[EndTime "16:06:22 PDT"]
[Termination "Game drawn - insufficient material"]

1. e4 {[%clk 0:03:00.9]} 1... e5 {[%clk 0:02:56.2]} 2. Nf3 {[%clk 0:02:55.5]}
2... Nf6 {[%clk 0:02:56.4]} 3. Nc3 {[%clk 0:02:49.6]} 3... Bb4 {[%clk
0:02:56.1]} 4. Bc4 {[%clk 0:02:41.7]} 4... Bxc3 {[%clk 0:02:48.8]} 5. dxc3
{[%clk 0:02:42.6]} 5... d6 {[%clk 0:02:49.3]} 6. Bg5 {[%clk 0:02:33.8]} 6...
Nbd7 {[%clk 0:02:49.3]} 7. O-O {[%clk 0:02:33.3]} 7... h6 {[%clk 0:02:48.6]} 8.
Be3 {[%clk 0:02:21.7]} 8... O-O {[%clk 0:02:42.5]} 9. Bd3 {[%clk 0:02:12.3]}
9... Re8 {[%clk 0:02:35]} 10. c4 {[%clk 0:02:10.8]} 10... Nc5 {[%clk 0:02:30.9]}
11. Bxc5 {[%clk 0:02:08]} 11... dxc5 {[%clk 0:02:30.8]} 12. h3 {[%clk
0:02:08.1]} 12... Nh7 {[%clk 0:02:14.8]} 13. Qd2 {[%clk 0:02:03.9]} 13... Qf6
{[%clk 0:02:12.3]} 14. Qe3 {[%clk 0:02:02.2]} 14... b6 {[%clk 0:02:11.6]} 15. a3
{[%clk 0:01:47]} 15... a5 {[%clk 0:02:05.6]} 16. b4 {[%clk 0:01:32.2]} 16...
axb4 {[%clk 0:02:04.7]} 17. axb4 {[%clk 0:01:33.1]} 17... Rxa1 {[%clk
0:02:02.2]} 18. Rxa1 {[%clk 0:01:34]} 18... cxb4 {[%clk 0:02:01.6]} 19. c5
{[%clk 0:01:18.5]} 19... bxc5 {[%clk 0:01:53.4]} 20. Qxc5 {[%clk 0:01:17.5]}
20... Bxh3 {[%clk 0:01:50.1]} 21. Qxc7 {[%clk 0:01:17.3]} 21... Qg6 {[%clk
0:01:22.9]} 22. Ne1 {[%clk 0:00:41.7]} 22... Ng5 {[%clk 0:01:14]} 23. Kh2 {[%clk
0:00:36.4]} 23... Bg4 {[%clk 0:01:06.4]} 24. Ra7 {[%clk 0:00:28.1]} 24... Qf6
{[%clk 0:00:45.8]} 25. Kg1 {[%clk 0:00:24.5]} 25... Ne6 {[%clk 0:00:43.7]} 26.
Qd7 {[%clk 0:00:20.1]} 26... Rd8 {[%clk 0:00:41.8]} 27. Qb7 {[%clk 0:00:17.9]}
27... Nf4 {[%clk 0:00:41.2]} 28. f3 {[%clk 0:00:17.9]} 28... Be6 {[%clk
0:00:39]} 29. Qxb4 {[%clk 0:00:17.2]} 29... Qg5 {[%clk 0:00:38.5]} 30. Qe7
{[%clk 0:00:16.1]} 30... Rb8 {[%clk 0:00:20.2]} 31. Qxg5 {[%clk 0:00:15.9]}
31... hxg5 {[%clk 0:00:21.1]} 32. Kf2 {[%clk 0:00:16]} 32... Rb2 {[%clk
0:00:19.7]} 33. Rc7 {[%clk 0:00:14.6]} 33... Kf8 {[%clk 0:00:16.2]} 34. g3
{[%clk 0:00:14.1]} 34... Ng6 {[%clk 0:00:12.5]} 35. Ke3 {[%clk 0:00:14.2]} 35...
Ke8 {[%clk 0:00:11.3]} 36. Rc5 {[%clk 0:00:09.8]} 36... f6 {[%clk 0:00:10.7]}
37. Kd2 {[%clk 0:00:08.3]} 37... Rb8 {[%clk 0:00:10]} 38. c4 {[%clk 0:00:07.6]}
38... Ne7 {[%clk 0:00:08.2]} 39. Rc7 {[%clk 0:00:07.4]} 39... Rd8 {[%clk
0:00:07.6]} 40. Ke3 {[%clk 0:00:07.4]} 40... Bd7 {[%clk 0:00:07.6]} 41. c5
{[%clk 0:00:07.2]} 41... Nc6 {[%clk 0:00:07.8]} 42. Bb5 {[%clk 0:00:06.9]} 42...
Nd4 {[%clk 0:00:06.4]} 43. Bxd7+ {[%clk 0:00:06.6]} 43... Rxd7 {[%clk
0:00:07.3]} 44. Rxd7 {[%clk 0:00:06.3]} 44... Kxd7 {[%clk 0:00:08.2]} 45. Nd3
{[%clk 0:00:07.1]} 45... Kc6 {[%clk 0:00:08.1]} 46. f4 {[%clk 0:00:07.5]} 46...
gxf4+ {[%clk 0:00:07.2]} 47. gxf4 {[%clk 0:00:08.4]} 47... Ne6 {[%clk
0:00:04.2]} 48. fxe5 {[%clk 0:00:08]} 48... fxe5 {[%clk 0:00:05.1]} 49. Nxe5+
{[%clk 0:00:08.3]} 49... Kxc5 {[%clk 0:00:05.7]} 50. Nf7 {[%clk 0:00:07]} 50...
g5 {[%clk 0:00:04.1]} 51. Kd3 {[%clk 0:00:05.3]} 51... g4 {[%clk 0:00:03.8]} 52.
Ne5 {[%clk 0:00:05.3]} 52... g3 {[%clk 0:00:02.7]} 53. Ke3 {[%clk 0:00:05.5]}
53... Kd6 {[%clk 0:00:01.5]} 54. Nf7+ {[%clk 0:00:02.9]} 54... Ke7 {[%clk
0:00:01.6]} 55. Nh6 {[%clk 0:00:03.3]} 55... Nc5 {[%clk 0:00:02.1]} 56. Nf5+
{[%clk 0:00:04.1]} 56... Kf6 {[%clk 0:00:02.2]} 57. Nxg3 {[%clk 0:00:04.5]}
57... Nxe4 {[%clk 0:00:02.6]} 1/2-1/2

[Event "Late-Titled-Tuesday-Blitz-September-19-2023"]
[Site "Chess.com"]
[Date "2023.09.19"]
[Round "11"]
[White "jefferyx"]
[Black "ChessWarrior7197"]
[Result "1/2-1/2"]
[WhiteElo "3007"]
[BlackElo "3063"]
[TimeControl "180+1"]
[EndTime "16:06:25 PDT"]
[Termination "Game drawn - insufficient material"]

1. d4 {[%clk 0:03:00.9]} 1... d5 {[%clk 0:03:00.3]} 2. Nf3 {[%clk 0:03:01.2]}
2... Nf6 {[%clk 0:03:00.4]} 3. c4 {[%clk 0:03:01.6]} 3... e6 {[%clk 0:03:00.2]}
4. Nc3 {[%clk 0:03:01.9]} 4... a6 {[%clk 0:03:00.1]} 5. cxd5 {[%clk 0:02:55]}
5... exd5 {[%clk 0:03:01]} 6. Bg5 {[%clk 0:02:55.2]} 6... Be6 {[%clk 0:03:01.2]}
7. e3 {[%clk 0:02:55.7]} 7... Nbd7 {[%clk 0:03:00.9]} 8. Bd3 {[%clk 0:02:56]}
8... Bd6 {[%clk 0:03:00.2]} 9. O-O {[%clk 0:02:56]} 9... c6 {[%clk 0:03:00.8]}
10. Bf4 {[%clk 0:02:54]} 10... Qb8 {[%clk 0:02:59.1]} 11. Qd2 {[%clk 0:02:54.1]}
11... h6 {[%clk 0:02:56.7]} 12. h3 {[%clk 0:02:54.2]} 12... O-O {[%clk
0:02:56.9]} 13. Rfe1 {[%clk 0:02:42.4]} 13... Re8 {[%clk 0:02:54.9]} 14. Rac1
{[%clk 0:02:41.3]} 14... Nh5 {[%clk 0:02:55]} 15. Bxd6 {[%clk 0:02:39.5]} 15...
Qxd6 {[%clk 0:02:55.9]} 16. Na4 {[%clk 0:02:39.7]} 16... Nhf6 {[%clk 0:02:51.9]}
17. Nc5 {[%clk 0:02:39.6]} 17... Nxc5 {[%clk 0:02:52.1]} 18. dxc5 {[%clk
0:02:39.6]} 18... Qc7 {[%clk 0:02:50.9]} 19. Nd4 {[%clk 0:02:39.9]} 19... a5
{[%clk 0:02:48.7]} 20. Rb1 {[%clk 0:02:30.1]} 20... Bd7 {[%clk 0:02:44.2]} 21.
b3 {[%clk 0:02:10.4]} 21... Ne4 {[%clk 0:02:23.3]} 22. Bxe4 {[%clk 0:02:10.6]}
22... Rxe4 {[%clk 0:02:23.1]} 23. b4 {[%clk 0:02:07.5]} 23... axb4 {[%clk
0:02:22.6]} 24. Rxb4 {[%clk 0:02:08.4]} 24... Bc8 {[%clk 0:02:19.2]} 25. a4
{[%clk 0:01:57.7]} 25... Qe7 {[%clk 0:02:18.9]} 26. Rc1 {[%clk 0:01:52.4]} 26...
h5 {[%clk 0:02:18]} 27. a5 {[%clk 0:01:36.4]} 27... Qf6 {[%clk 0:02:01.4]} 28.
Rb6 {[%clk 0:01:35.1]} 28... Kh7 {[%clk 0:01:46.8]} 29. Ra1 {[%clk 0:01:29.7]}
29... Qg6 {[%clk 0:01:36.8]} 30. Kf1 {[%clk 0:01:24.9]} 30... Qf6 {[%clk
0:01:05]} 31. Qd1 {[%clk 0:01:05.2]} 31... g6 {[%clk 0:00:58.2]} 32. Ra3 {[%clk
0:00:59.1]} 32... Qe7 {[%clk 0:00:54.3]} 33. Qc2 {[%clk 0:00:48.9]} 33... Qc7
{[%clk 0:00:45.8]} 34. Kg1 {[%clk 0:00:47.4]} 34... Bd7 {[%clk 0:00:36.4]} 35.
a6 {[%clk 0:00:46]} 35... Rxa6 {[%clk 0:00:35.4]} 36. Rbxa6 {[%clk 0:00:46.9]}
36... bxa6 {[%clk 0:00:36.3]} 37. Rxa6 {[%clk 0:00:47.1]} 37... Re8 {[%clk
0:00:34.9]} 38. Qa2 {[%clk 0:00:40.1]} 38... Rb8 {[%clk 0:00:34.6]} 39. Ra7
{[%clk 0:00:40.6]} 39... Rb7 {[%clk 0:00:35.2]} 40. Rxb7 {[%clk 0:00:41.2]}
40... Qxb7 {[%clk 0:00:36.1]} 41. Qa5 {[%clk 0:00:40.8]} 41... Qb1+ {[%clk
0:00:31.7]} 42. Kh2 {[%clk 0:00:41.3]} 42... Qb8+ {[%clk 0:00:32.6]} 43. Kg1
{[%clk 0:00:38.7]} 43... Qb1+ {[%clk 0:00:32.6]} 44. Kh2 {[%clk 0:00:39.4]}
44... Qb8+ {[%clk 0:00:33.2]} 45. f4 {[%clk 0:00:33.5]} 45... Qe8 {[%clk
0:00:31.3]} 46. Qc3 {[%clk 0:00:30.5]} 46... f6 {[%clk 0:00:26.5]} 47. Nf3
{[%clk 0:00:30.6]} 47... Qe7 {[%clk 0:00:25.9]} 48. Qd4 {[%clk 0:00:30.4]} 48...
Bf5 {[%clk 0:00:25.5]} 49. Nd2 {[%clk 0:00:29.6]} 49... g5 {[%clk 0:00:24.5]}
50. fxg5 {[%clk 0:00:29.1]} 50... fxg5 {[%clk 0:00:25.4]} 51. Nf3 {[%clk
0:00:29.6]} 51... Bd7 {[%clk 0:00:20.6]} 52. Qe5 {[%clk 0:00:28.9]} 52... Qxe5+
{[%clk 0:00:19.3]} 53. Nxe5 {[%clk 0:00:29.8]} 53... Be8 {[%clk 0:00:20.2]} 54.
h4 {[%clk 0:00:30.5]} 54... gxh4 {[%clk 0:00:19]} 55. Kh3 {[%clk 0:00:30.8]}
55... Kg7 {[%clk 0:00:19.9]} 56. Kxh4 {[%clk 0:00:31.3]} 56... Kf6 {[%clk
0:00:20.8]} 57. Nf3 {[%clk 0:00:31.7]} 57... Kf5 {[%clk 0:00:21.3]} 58. Nd2
{[%clk 0:00:23.9]} 58... Ke5 {[%clk 0:00:20.2]} 59. Kg5 {[%clk 0:00:24.2]} 59...
Bf7 {[%clk 0:00:15.6]} 60. g3 {[%clk 0:00:24.7]} 60... Be8 {[%clk 0:00:15.9]}
61. g4 {[%clk 0:00:20.8]} 61... hxg4 {[%clk 0:00:15.4]} 62. Kxg4 {[%clk
0:00:21.7]} 62... Bd7+ {[%clk 0:00:10.3]} 63. Kf3 {[%clk 0:00:20.1]} 63... d4
{[%clk 0:00:09.1]} 64. Nc4+ {[%clk 0:00:18.9]} 64... Kd5 {[%clk 0:00:06.1]} 65.
Nb6+ {[%clk 0:00:19.1]} 65... Kxc5 {[%clk 0:00:06.8]} 66. Nxd7+ {[%clk
0:00:19.3]} 66... Kd6 {[%clk 0:00:07.5]} 67. exd4 {[%clk 0:00:15.7]} 67... Kxd7
{[%clk 0:00:06.8]} 68. Ke4 {[%clk 0:00:16.6]} 68... Kd6 {[%clk 0:00:06.8]} 69.
Kd3 {[%clk 0:00:17.5]} 69... Kd5 {[%clk 0:00:07]} 70. Kc3 {[%clk 0:00:18.4]}
70... c5 {[%clk 0:00:06.3]} 71. dxc5 {[%clk 0:00:19.3]} 71... Kxc5 {[%clk
0:00:06.8]} 1/2-1/2

[Event "Late-Titled-Tuesday-Blitz-September-19-2023"]
[Site "Chess.com"]
[Date "2023.09.19"]
[Round "11"]
[White "amanmuhammethommadov"]
[Black "farzadbfd"]
[Result "1-0"]
[WhiteElo "2592"]
[BlackElo "2683"]
[TimeControl "180+1"]
[EndTime "16:06:31 PDT"]
[Termination "amanmuhammethommadov won by checkmate"]

1. e4 {[%clk 0:03:00.3]} 1... e5 {[%clk 0:03:00.1]} 2. Nf3 {[%clk 0:03:00.6]}
2... Nc6 {[%clk 0:03:00.2]} 3. Bb5 {[%clk 0:03:00.9]} 3... a6 {[%clk 0:03:00.5]}
4. Ba4 {[%clk 0:03:01.4]} 4... Nf6 {[%clk 0:02:59.6]} 5. O-O {[%clk 0:03:01.7]}
5... d6 {[%clk 0:02:59.8]} 6. c3 {[%clk 0:03:01.7]} 6... Bd7 {[%clk 0:03:00.2]}
7. d3 {[%clk 0:03:02]} 7... g6 {[%clk 0:03:00.6]} 8. Re1 {[%clk 0:03:02.4]} 8...
Bg7 {[%clk 0:03:01.1]} 9. Nbd2 {[%clk 0:03:03]} 9... O-O {[%clk 0:03:01.8]} 10.
Nf1 {[%clk 0:03:03.7]} 10... Nh5 {[%clk 0:03:01.7]} 11. Ng3 {[%clk 0:03:03.5]}
11... Nxg3 {[%clk 0:03:02]} 12. hxg3 {[%clk 0:03:03.4]} 12... h6 {[%clk
0:03:02.5]} 13. d4 {[%clk 0:03:01.2]} 13... Kh7 {[%clk 0:02:58.9]} 14. Be3
{[%clk 0:03:00.6]} 14... Qe7 {[%clk 0:02:42.1]} 15. dxe5 {[%clk 0:02:54.1]}
15... dxe5 {[%clk 0:02:35.7]} 16. Qc2 {[%clk 0:02:53.9]} 16... b5 {[%clk
0:02:26.2]} 17. Bb3 {[%clk 0:02:53.9]} 17... Na5 {[%clk 0:02:26.7]} 18. Rad1
{[%clk 0:02:51.8]} 18... Nxb3 {[%clk 0:02:25.4]} 19. axb3 {[%clk 0:02:52.7]}
19... Be6 {[%clk 0:02:23.4]} 20. b4 {[%clk 0:02:52.5]} 20... Rfd8 {[%clk
0:02:23.7]} 21. Nd2 {[%clk 0:02:36.8]} 21... a5 {[%clk 0:02:17.5]} 22. bxa5
{[%clk 0:02:34.8]} 22... Rxa5 {[%clk 0:02:18.4]} 23. Nb3 {[%clk 0:02:32.9]}
23... Raa8 {[%clk 0:01:48.8]} 24. Nc5 {[%clk 0:02:29.5]} 24... Bg4 {[%clk
0:01:45.1]} 25. f3 {[%clk 0:02:29.2]} 25... Be6 {[%clk 0:01:34.1]} 26. Ra1
{[%clk 0:01:54.7]} 26... h5 {[%clk 0:01:31]} 27. Qe2 {[%clk 0:01:45.6]} 27...
Bc4 {[%clk 0:01:27.1]} 28. Qc2 {[%clk 0:01:41.9]} 28... Rxa1 {[%clk 0:01:19]}
29. Rxa1 {[%clk 0:01:40.7]} 29... Bh6 {[%clk 0:01:19.6]} 30. Qf2 {[%clk
0:01:37.2]} 30... Bf8 {[%clk 0:01:08.8]} 31. b3 {[%clk 0:01:26.4]} 31... Be6
{[%clk 0:01:08.3]} 32. Ra6 {[%clk 0:01:16.7]} 32... Rd1+ {[%clk 0:01:06.9]} 33.
Kh2 {[%clk 0:01:16.3]} 33... Bc8 {[%clk 0:00:47.2]} 34. Ra8 {[%clk 0:00:57.7]}
34... Qd8 {[%clk 0:00:47.2]} 35. Nb7 {[%clk 0:00:50.9]} 35... Qd3 {[%clk
0:00:46.7]} 36. Rxc8 {[%clk 0:00:30.9]} 36... Qb1 {[%clk 0:00:46.6]} 37. Qg1
{[%clk 0:00:31.3]} 37... Rxg1 {[%clk 0:00:45.2]} 38. Bxg1 {[%clk 0:00:32.2]}
38... Bd6 {[%clk 0:00:32.2]} 39. b4 {[%clk 0:00:20.7]} 39... Qd3 {[%clk
0:00:31.5]} 40. Bc5 {[%clk 0:00:20.5]} 40... Bxc5 {[%clk 0:00:27.3]} 41. Nxc5
{[%clk 0:00:21.4]} 41... Qxc3 {[%clk 0:00:26.5]} 42. Rxc7 {[%clk 0:00:22]} 42...
Qxb4 {[%clk 0:00:25.4]} 43. Rxf7+ {[%clk 0:00:22]} 43... Kg8 {[%clk 0:00:25.3]}
44. Rc7 {[%clk 0:00:22.5]} 44... Qa5 {[%clk 0:00:17.5]} 45. Rb7 {[%clk
0:00:21.6]} 45... b4 {[%clk 0:00:17.7]} 46. Nd3 {[%clk 0:00:18.7]} 46... Qa6
{[%clk 0:00:17.6]} 47. Rb8+ {[%clk 0:00:19.2]} 47... Kg7 {[%clk 0:00:16.8]} 48.
Nxb4 {[%clk 0:00:19.8]} 48... Qd6 {[%clk 0:00:16.3]} 49. Rb7+ {[%clk 0:00:19.7]}
49... Kh6 {[%clk 0:00:16.9]} 50. Nd5 {[%clk 0:00:20.5]} 50... Qc5 {[%clk
0:00:13.5]} 51. Nf6 {[%clk 0:00:20.1]} 51... Qf2 {[%clk 0:00:10.1]} 52. Rh7+
{[%clk 0:00:16]} 52... Kg5 {[%clk 0:00:09.7]} 53. Nd5 {[%clk 0:00:16.9]} 53...
Qe1 {[%clk 0:00:06.4]} 54. Rh8 {[%clk 0:00:13.2]} 54... Qd1 {[%clk 0:00:06.1]}
55. f4+ {[%clk 0:00:12.4]} 55... exf4 {[%clk 0:00:06]} 56. gxf4+ {[%clk
0:00:13.3]} 56... Kg4 {[%clk 0:00:05.7]} 57. Ne3+ {[%clk 0:00:13.6]} 57... Kh4
{[%clk 0:00:02]} 58. Nxd1 {[%clk 0:00:14.5]} 58... Kg4 {[%clk 0:00:01.5]} 59.
Rg8 {[%clk 0:00:14.8]} 59... Kh4 {[%clk 0:00:01.7]} 60. e5 {[%clk 0:00:13.3]}
60... g5 {[%clk 0:00:01.9]} 61. e6 {[%clk 0:00:14.2]} 61... g4 {[%clk
0:00:02.2]} 62. g3# {[%clk 0:00:14.2]} 1-0

[Event "Late-Titled-Tuesday-Blitz-September-19-2023"]
[Site "Chess.com"]
[Date "2023.09.19"]
[Round "11"]
[White "Rital44"]
[Black "KaydenTroffChess"]
[Result "1-0"]
[WhiteElo "2591"]
[BlackElo "2758"]
[TimeControl "180+1"]
[EndTime "16:06:37 PDT"]
[Termination "Rital44 won by resignation"]

1. d4 {[%clk 0:02:37]} 1... Nf6 {[%clk 0:02:59.7]} 2. Bg5 {[%clk 0:02:36.8]}
2... d5 {[%clk 0:02:58.4]} 3. Nd2 {[%clk 0:02:36.5]} 3... Nbd7 {[%clk
0:02:58.3]} 4. e3 {[%clk 0:02:35.5]} 4... e5 {[%clk 0:02:52.9]} 5. dxe5 {[%clk
0:02:36.4]} 5... Nxe5 {[%clk 0:02:53.3]} 6. Ngf3 {[%clk 0:02:34.4]} 6... Ng6
{[%clk 0:02:50.6]} 7. Bd3 {[%clk 0:02:17.7]} 7... Be7 {[%clk 0:02:41.6]} 8. c4
{[%clk 0:02:11]} 8... O-O {[%clk 0:02:36.8]} 9. O-O {[%clk 0:02:09.6]} 9... Be6
{[%clk 0:02:23.8]} 10. cxd5 {[%clk 0:02:09.1]} 10... Qxd5 {[%clk 0:02:24.1]} 11.
Bc4 {[%clk 0:02:07.6]} 11... Qd7 {[%clk 0:02:16]} 12. Bxe6 {[%clk 0:02:04.5]}
12... Qxe6 {[%clk 0:02:16]} 13. Nd4 {[%clk 0:02:02.3]} 13... Qd5 {[%clk
0:02:00.2]} 14. N2f3 {[%clk 0:02:00.9]} 14... h6 {[%clk 0:01:59.3]} 15. Bxf6
{[%clk 0:01:56]} 15... Bxf6 {[%clk 0:02:00.2]} 16. Rc1 {[%clk 0:01:52.9]} 16...
c6 {[%clk 0:01:58.1]} 17. Qa4 {[%clk 0:01:42]} 17... Ne5 {[%clk 0:01:37.4]} 18.
Nxe5 {[%clk 0:01:39.3]} 18... Qxe5 {[%clk 0:01:38.1]} 19. b3 {[%clk 0:01:35.4]}
19... a5 {[%clk 0:01:13.8]} 20. Qc4 {[%clk 0:01:32.7]} 20... Rfc8 {[%clk
0:01:09.8]} 21. a4 {[%clk 0:01:30.5]} 21... Rd8 {[%clk 0:01:00.3]} 22. Rfd1
{[%clk 0:01:30.1]} 22... Qe7 {[%clk 0:00:37.3]} 23. g3 {[%clk 0:01:29.3]} 23...
Rd5 {[%clk 0:00:29.9]} 24. Nf3 {[%clk 0:01:18.6]} 24... Rad8 {[%clk 0:00:24.8]}
25. Rxd5 {[%clk 0:01:17.7]} 25... Rxd5 {[%clk 0:00:24.7]} 26. Kg2 {[%clk
0:01:11]} 26... Rd7 {[%clk 0:00:19.9]} 27. Qc5 {[%clk 0:00:57.2]} 27... Qe4
{[%clk 0:00:20]} 28. Qxa5 {[%clk 0:00:33.7]} 28... g5 {[%clk 0:00:17.5]} 29. Rc4
{[%clk 0:00:30.1]} 29... Qb1 {[%clk 0:00:15.4]} 30. Nd4 {[%clk 0:00:14.4]} 30...
Bxd4 {[%clk 0:00:10.8]} 31. Rxd4 {[%clk 0:00:11.6]} 31... Rxd4 {[%clk
0:00:10.5]} 32. exd4 {[%clk 0:00:12.4]} 32... Qxb3 {[%clk 0:00:10]} 33. Qd8+
{[%clk 0:00:07.2]} 33... Kg7 {[%clk 0:00:09.9]} 34. a5 {[%clk 0:00:07.9]} 34...
Qb5 {[%clk 0:00:09.6]} 35. h3 {[%clk 0:00:06]} 35... Qd5+ {[%clk 0:00:07.5]} 36.
Qxd5 {[%clk 0:00:05.3]} 36... cxd5 {[%clk 0:00:08.4]} 37. Kf3 {[%clk 0:00:06]}
37... Kf6 {[%clk 0:00:08.8]} 38. Ke3 {[%clk 0:00:02.8]} 38... Ke6 {[%clk
0:00:09.3]} 39. Kd3 {[%clk 0:00:03.1]} 39... Kd6 {[%clk 0:00:09.5]} 40. Kc3
{[%clk 0:00:03.6]} 40... Kc6 {[%clk 0:00:09.9]} 41. Kb4 {[%clk 0:00:04.3]} 41...
f5 {[%clk 0:00:06.1]} 42. f4 {[%clk 0:00:03.6]} 42... gxf4 {[%clk 0:00:02.6]}
43. gxf4 {[%clk 0:00:03.8]} 43... Kd6 {[%clk 0:00:02.5]} 44. Kb5 {[%clk
0:00:03.8]} 44... Kc7 {[%clk 0:00:02.7]} 45. Kc5 {[%clk 0:00:03.8]} 45... Kb8
{[%clk 0:00:03.4]} 46. Kb6 {[%clk 0:00:04.5]} 46... Ka8 {[%clk 0:00:03.5]} 47.
Kc5 {[%clk 0:00:04.9]} 47... Ka7 {[%clk 0:00:03.9]} 48. Kxd5 {[%clk 0:00:05.8]}
48... Ka6 {[%clk 0:00:04.8]} 49. Ke6 {[%clk 0:00:05.7]} 49... Kxa5 {[%clk
0:00:05.4]} 50. d5 {[%clk 0:00:06.6]} 50... b5 {[%clk 0:00:06]} 51. d6 {[%clk
0:00:07.5]} 51... b4 {[%clk 0:00:06.9]} 52. d7 {[%clk 0:00:08.3]} 52... b3
{[%clk 0:00:07.8]} 53. d8=Q+ {[%clk 0:00:09.1]} 53... Kb4 {[%clk 0:00:08.2]} 54.
Qd1 {[%clk 0:00:09.7]} 54... Kc3 {[%clk 0:00:08.2]} 55. Qb1 {[%clk 0:00:10.6]}
55... b2 {[%clk 0:00:08.1]} 56. Kd5 {[%clk 0:00:11.5]} 56... Kd2 {[%clk
0:00:08.5]} 57. Kc4 {[%clk 0:00:12]} 57... Ke3 {[%clk 0:00:09.4]} 58. Kc3 {[%clk
0:00:12.8]} 58... Kxf4 {[%clk 0:00:10.3]} 59. Qxb2 {[%clk 0:00:13.3]} 59... Kg3
{[%clk 0:00:11.2]} 60. Qc1 {[%clk 0:00:12.4]} 60... f4 {[%clk 0:00:12.1]} 61.
Qf1 {[%clk 0:00:12.2]} 61... f3 {[%clk 0:00:11.5]} 62. Kd4 {[%clk 0:00:12.7]}
62... h5 {[%clk 0:00:12.2]} 63. Ke4 {[%clk 0:00:13.2]} 63... h4 {[%clk 0:00:13]}
64. Qxf3+ {[%clk 0:00:13.2]} 64... Kh2 {[%clk 0:00:13.9]} 65. Qf2+ {[%clk
0:00:12]} 65... Kxh3 {[%clk 0:00:13.1]} 66. Qe2 {[%clk 0:00:11.6]} 66... Kg3
{[%clk 0:00:13.3]} 67. Qf3+ {[%clk 0:00:12.2]} 67... Kh2 {[%clk 0:00:13.6]} 68.
Ke3 {[%clk 0:00:11.3]} 68... h3 {[%clk 0:00:13]} 69. Ke2 {[%clk 0:00:07.8]}
69... Kg1 {[%clk 0:00:12.1]} 70. Qg3+ {[%clk 0:00:07.5]} 70... Kh1 {[%clk
0:00:11.5]} 71. Qxh3+ {[%clk 0:00:07.7]} 71... Kg1 {[%clk 0:00:12.4]} 72. Qg3+
{[%clk 0:00:08.1]} 72... Kh1 {[%clk 0:00:12.8]} 73. Qf3+ {[%clk 0:00:08.6]}
73... Kg1 {[%clk 0:00:13]} 74. Kd2 {[%clk 0:00:08.9]} 74... Kh2 {[%clk
0:00:13.1]} 75. Qg4 {[%clk 0:00:08.9]} 75... Kh1 {[%clk 0:00:14]} 76. Ke2 {[%clk
0:00:09.3]} 1-0